bitfinex/quotes_SOLUSD_20240530
["timestamp","ask_amount","ask_price","bid_price","bid_amount"]
[1717030698807,26.77,168.19,168.15,23.3146]
[1717030702727,20.0,168.19,168.16,6.6116]
[1717030703015,8.9696,168.21,168.17,6.6116]
[1717030703196,27.14903872,168.2,168.17,6.6116]
[1717030703391,20.0,168.2,168.17,6.6116]
[1717030705119,26.0754,168.26,168.15,6.77]
[1717030705323,2.1994,168.23,168.19,6.2881]
[1717030705617,7.14875925,168.22,168.19,21.9943]
[1717030705823,8.9694,168.23,168.19,21.9943]
[1717030706015,6.77,168.22,168.19,21.9943]
[1717030706223,8.9695,168.22,168.19,21.9943]
[1717030706526,6.77,168.22,168.19,21.9943]
[1717030706914,6.77,168.23,168.19,24.1941]
[1717030707106,7.14795611,168.22,168.19,21.9943]
[1717030707304,8.9693,168.23,168.19,21.9943]
[1717030707517,2.1993,168.23,168.19,21.9943]
[1717030707715,7.14811798,168.22,168.19,21.9943]
[1717030707906,8.9693,168.23,168.19,21.9943]
[1717030708722,8.9693,168.23,168.15,11.0018]
[1717030708723,6.77,168.2,168.15,6.1099]
[1717030709024,8.9697,168.2,168.16,21.5644]
[1717030709220,8.9698,168.2,168.16,21.5644]
[1717030709915,6.77,168.2,168.16,23.7646]
[1717030710120,8.9697,168.2,168.16,23.7646]
[1717030710439,8.9697,168.2,168.16,21.5644]
[1717030710744,8.9697,168.2,168.16,6.1099]
[1717030711242,6.77,168.2,168.16,8.3101]
[1717030711611,21.55403313,168.23,168.14,8.8378]
[1717030711612,6.77,168.19,168.14,8.8378]
[1717030711815,8.9699,168.19,168.14,8.8378]
[1717030712016,8.9699,168.19,168.15,2.2004]
[1717030712440,6.77,168.19,168.15,2.2004]
[1717030713926,6.77,168.19,168.16,2.2002]
[1717030714121,8.9698,168.2,168.15,2.2003]
[1717030716627,6.77,168.19,168.15,2.2003]
[1717030718361,21.55393313,168.23,168.16,2.2002]
[1717030718362,2.1996,168.21,168.16,2.2002]
[1717030718652,2.1996,168.21,168.13,0.3632338]
[1717030718653,17.15513313,168.23,168.17,17.77]
[1717030718952,6.77,168.29,168.25,2.199]
[1717030719248,6.77,168.29,168.23,6.77]
[1717030719429,6.77,168.29,168.26,2.1989]
[1717030719629,6.77,168.28,168.25,2.199]
[1717030719833,6.77,168.28,168.23,6.77]
[1717030720057,6.77,168.28,168.23,13.245]
[1717030720239,19.35332664,168.31,168.25,2.199]
[1717030720446,60.0,168.41,168.25,2.199]
[1717030720447,6.77,168.29,168.26,2.1989]
[1717030720753,26.77,168.3,168.26,8.6739]
[1717030721127,33.3286,168.3,168.26,2.1989]
[1717030721429,33.3286,168.3,168.18,45.0]
[1717030721430,6.77,168.27,168.23,2.1992]
[1717030721634,22.1985,168.3,168.23,2.1992]
[1717030721842,6.77,168.27,168.24,2.1992]
[1717030722639,6.77,168.27,168.23,2.1993]
[1717030723038,2.1988,168.28,168.22,2.1994]
[1717030723237,6.77,168.24,168.18,11.1699]
[1717030723452,6.77,168.25,168.21,2.1996]
[1717030723639,2.1989,168.27,168.21,2.1996]
[1717030724034,6.77,168.25,168.21,2.1996]
[1717030724447,2.1989,168.27,168.22,2.1994]
[1717030724754,6.77,168.26,168.22,2.1994]
[1717030724954,6.77,168.24,168.21,2.1995]
[1717030725157,6.77,168.23,168.21,2.1995]
[1717030725332,6.77,168.25,168.21,2.1995]
[1717030725840,2.1988,168.27,168.21,2.1995]
[1717030726170,6.77,168.26,168.22,2.1994]
[1717030726462,6.77,168.25,168.22,2.1994]
[1717030727125,6.77,168.25,168.21,2.1995]
[1717030729759,2.1988,168.27,168.21,2.1995]
[1717030729935,6.77,168.25,168.22,2.1994]
[1717030730342,6.77,168.25,168.21,2.1995]
[1717030732742,2.1988,168.27,168.21,2.1995]
[1717030732940,6.77,168.26,168.21,2.1995]
[1717030734872,6.77,168.25,168.21,2.1995]
[1717030735488,6.77,168.24,168.21,2.1995]
[1717030737345,6.77,168.25,168.21,2.1995]
[1717030738563,6.77,168.25,168.22,2.1994]
[1717030738764,6.77,168.25,168.21,2.1995]
[1717030739149,2.1989,168.26,168.21,2.1995]
[1717030739350,6.77,168.25,168.21,2.1995]
[1717030740349,8.9691,168.25,168.2,2.1997]
[1717030740651,6.77,168.23,168.19,2.1998]
[1717030740861,6.77,168.24,168.2,2.1997]
[1717030741961,2.199,168.26,168.2,2.1997]
[1717030742171,6.77,168.24,168.2,2.1997]
[1717030742370,6.77,168.24,168.2,2.1996]
[1717030744449,6.77,168.24,168.14,14.8783]
[1717030744450,6.77,168.22,168.14,14.8783]
[1717030744777,6.77,168.22,168.19,2.1998]
[1717030745466,6.77,168.22,168.18,2.1999]
[1717030747586,2.1994,168.23,168.18,2.1999]
[1717030747757,6.77,168.22,168.18,2.1999]
[1717030748658,8.9695,168.22,168.18,2.1999]
[1717030751775,2.1995,168.22,168.18,2.1999]
[1717030751983,2.1994,168.23,168.18,2.1999]
[1717030752281,8.9695,168.22,168.18,2.1999]
[1717030752574,8.9695,168.22,168.17,2.2001]
[1717030753081,2.1993,168.23,168.18,2.1999]
[1717030753281,8.9693,168.23,168.18,2.1999]
[1717030753499,2.1993,168.23,168.18,2.1999]
[1717030753656,8.9693,168.23,168.18,2.1999]
[1717030753863,2.1995,168.22,168.17,8.9701]
[1717030754057,8.9695,168.22,168.17,2.2001]
[1717030755462,2.1994,168.23,168.18,2.1999]
[1717030755658,8.9693,168.23,168.18,2.1999]
[1717030756679,8.9693,168.23,168.17,8.9701]
[1717030757974,8.9693,168.23,168.18,2.2]
[1717030758582,2.1993,168.23,168.18,2.2]
[1717030758786,8.9693,168.23,168.17,8.9701]
[1717030759367,2.1993,168.23,168.17,8.9701]
[1717030759575,2.1993,168.23,168.18,2.1999]
[1717030759778,8.9693,168.23,168.18,2.1999]
[1717030761290,8.9693,168.23,168.17,8.9701]
[1717030761487,2.1995,168.22,168.17,8.9701]
[1717030762366,2.1995,168.22,168.17,15.5414]
[1717030763872,2.1995,168.22,168.17,8.7714]
[1717030764187,2.1995,168.22,168.17,15.5414]
[1717030765488,8.9695,168.22,168.17,8.7714]
[1717030767490,2.1995,168.22,168.17,8.7714]
[1717030767791,8.9695,168.22,168.17,8.7714]
[1717030771291,8.9695,168.22,168.18,2.2]
[1717030771292,2.1995,168.22,168.18,2.2]
[1717030771590,8.9695,168.22,168.18,2.2]
[1717030773192,8.9695,168.22,168.17,8.7714]
[1717030774672,6.77,168.23,168.2,6.3491]
[1717030774982,6.77,168.23,168.19,2.1998]
[1717030775177,8.9694,168.23,168.18,2.1999]
[1717030775383,6.77,168.22,168.18,2.1999]
[1717030775692,8.9695,168.22,168.18,2.1999]
[1717030776194,6.77,168.22,168.18,2.1999]
[1717030776883,8.9695,168.22,168.18,2.1999]
[1717030777193,8.9695,168.22,168.17,2.2]
[1717030778696,2.1995,168.22,168.18,2.1999]
[1717030779890,2.1995,168.22,168.17,2.2001]
[1717030780203,8.9694,168.23,168.18,2.1999]
[1717030780501,2.1995,168.22,168.18,2.1999]
[1717030781492,2.1995,168.22,168.17,2.2]
[1717030783199,8.9695,168.22,168.17,2.2]
[1717030784591,8.9695,168.22,168.17,8.2317]
[1717030784793,8.9695,168.22,168.18,2.1999]
[1717030784986,2.1995,168.22,168.18,2.1999]
[1717030791103,2.1995,168.22,168.17,2.2]
[1717030791800,2.1997,168.21,168.17,2.2001]
[1717030792007,2.1995,168.22,168.17,2.2001]
[1717030793090,2.1994,168.23,168.18,2.2]
[1717030793703,2.1995,168.22,168.17,8.97]
[1717030793889,2.1995,168.22,168.17,6.77]
[1717030794297,2.1995,168.22,168.17,8.97]
[1717030794781,2.1995,168.22,168.18,2.2]
[1717030795395,2.1994,168.23,168.18,2.2]
[1717030800022,2.1995,168.22,168.18,2.2]
[1717030800812,8.9694,168.23,168.18,2.2]
[1717030801015,2.1994,168.23,168.18,2.2]
[1717030801209,17.1552884,168.24,168.19,4.3997]
[1717030801398,9.08131151,168.3,168.19,4.3997]
[1717030801399,4.68431151,168.3,168.23,6.77]
[1717030801714,12.96770161,168.31,168.26,8.9688]
[1717030802117,6.77,168.29,168.21,4.399]
[1717030802411,8.9689,168.26,168.2,6.77]
[1717030802620,6.77,168.25,168.17,49.4002]
[1717030802797,8.9693,168.24,168.18,2.1999]
[1717030802999,8.9693,168.24,168.19,2.1998]
[1717030803216,6.77,168.24,168.19,2.1998]
[1717030803600,8.9691,168.25,168.2,2.1997]
[1717030803912,8.969,168.26,168.2,8.9697]
[1717030804220,2.199,168.26,168.2,8.9697]
[1717030804516,8.969,168.26,168.2,2.1997]
[1717030804696,8.969,168.26,168.2,8.9697]
[1717030805098,6.77,168.25,168.15,6.6011]
[1717030805299,8.9692,168.24,168.19,2.1998]
[1717030806514,8.9691,168.25,168.19,8.9698]
[1717030806811,2.1991,168.25,168.19,8.9698]
[1717030807018,2.1991,168.25,168.2,2.1997]
[1717030807219,22.199,168.26,168.2,8.9697]
[1717030807511,2.1991,168.25,168.2,8.9697]
[1717030807704,8.969,168.26,168.21,8.9695]
[1717030807898,2.1988,168.27,168.22,2.1994]
[1717030808116,4.3967,168.31,168.21,2.1996]
[1717030808117,8.969,168.26,168.21,2.1996]
[1717030808411,2.199,168.26,168.21,2.1995]
[1717030808617,6.77,168.27,168.22,2.1994]
[1717030808814,2.1988,168.28,168.23,2.1993]
[1717030808995,6.77,168.27,168.23,2.1993]
[1717030809192,2.1988,168.28,168.23,2.1993]
[1717030809193,8.9688,168.28,168.23,2.1993]
[1717030809396,46.8642,168.32,168.23,2.1993]
[1717030809397,6.77,168.29,168.24,2.1991]
[1717030809620,6.77,168.29,168.24,3.16840481]
[1717030810214,2.1985,168.3,168.24,2.1991]
[1717030810420,6.77,168.29,168.24,8.8039]
[1717030810921,6.77,168.29,168.25,2.1991]
[1717030812118,8.9683,168.31,168.25,15.2607]
[1717030813025,8.9683,168.31,168.26,2.1989]
[1717030813227,8.9683,168.31,168.25,15.2606]
[1717030813403,6.77,168.29,168.25,8.4906]
[1717030814509,6.77,168.28,168.25,8.4906]
[1717030815106,6.77,168.29,168.26,2.1989]
[1717030816038,6.77,168.3,168.26,2.1989]
[1717030818737,6.77,168.27,168.23,2.1993]
[1717030818938,11.1664,168.32,168.23,2.1993]
[1717030818939,6.77,168.26,168.23,2.1993]
[1717030819141,6.77,168.26,168.21,12.777]
[1717030819309,6.77,168.29,168.25,2.199]
[1717030819508,6.77,168.29,168.24,8.2061]
[1717030819726,8.9686,168.29,168.24,8.2061]
[1717030820125,2.1986,168.29,168.24,8.2061]
[1717030821337,2.1985,168.3,168.24,8.2061]
[1717030821539,2.1985,168.3,168.25,2.199]
[1717030822034,2.1985,168.3,168.25,8.5501]
[1717030822334,8.9684,168.3,168.25,8.5501]
[1717030823046,6.77,168.3,168.25,8.5501]
[1717030823232,2.1982,168.32,168.24,6.77]
[1717030823528,2.1982,168.32,168.28,6.1042]
[1717030823529,6.77,168.32,168.28,6.1042]
[1717030823842,6.77,168.32,168.28,8.3029]
[1717030824716,6.77,168.32,168.28,8.3028]
[1717030825437,8.9682,168.32,168.28,6.1042]
[1717030826537,2.198,168.34,168.28,6.1042]
[1717030826714,6.77,168.33,168.29,6.1184]
[1717030826919,8.968,168.33,168.29,6.1184]
[1717030827136,8.9679,168.34,168.29,8.3169]
[1717030828841,2.1979,168.34,168.3,6.5774]
[1717030829137,6.77,168.34,168.3,8.7757]
[1717030829332,6.77,168.34,168.3,6.5774]
[1717030829714,2.1978,168.35,168.3,6.5774]
[1717030829918,6.77,168.34,168.3,6.5774]
[1717030830246,6.77,168.34,168.3,8.7758]
[1717030833748,6.5919,168.41,168.25,45.0]
[1717030833749,7.04e-05,168.62,168.61,39.4841]
[1717030833938,4.78598845,168.71,168.61,30.9252]
[1717030834243,4.78598845,168.71,168.59,5.7543]
[1717030834244,4.78598845,168.71,168.67,3.22507219]
[1717030834424,0.3505,168.72,168.67,1.03157219]
[1717030834623,2.1931,168.71,168.67,1.03157219]
[1717030834825,6.6343,168.71,168.67,1.03157219]
[1717030835022,2.1943,168.62,168.56,4.785989]
[1717030835337,6.77,168.57,168.48,6.3163]
[1717030835540,6.77,168.58,168.48,6.3163]
[1717030835755,6.77,168.58,168.5,2.1957]
[1717030835921,6.77,168.58,168.48,33.3963]
[1717030836255,6.77,168.58,168.49,45.0]
[1717030836747,6.77,168.58,168.52,6.77]
[1717030838557,6.77,168.59,168.53,6.77]
[1717030838743,2.1943,168.62,168.52,2.1955]
[1717030839049,6.77,168.61,168.55,6.77]
[1717030839344,6.77,168.61,168.52,2.1955]
[1717030839345,2.1943,168.62,168.53,6.77]
[1717030839644,6.77,168.59,168.53,6.77]
[1717030839850,6.77,168.59,168.54,6.77]
[1717030840054,2.1943,168.62,168.54,6.77]
[1717030840859,2.1943,168.62,168.53,8.9654]
[1717030841038,2.1943,168.62,168.54,6.77]
[1717030841638,2.1944,168.61,168.53,6.77]
[1717030842665,2.1945,168.6,168.53,6.77]
[1717030843465,6.77,168.58,168.52,8.9655]
[1717030843636,2.1945,168.6,168.52,8.9655]
[1717030843836,6.77,168.58,168.48,6.3163]
[1717030844047,6.77,168.58,168.52,6.77]
[1717030844260,6.77,168.59,168.52,6.77]
[1717030844438,6.77,168.6,168.52,6.77]
[1717030845263,8.9645,168.6,168.53,2.1954]
[1717030845561,8.9645,168.6,168.51,2.1955]
[1717030845764,6.77,168.59,168.51,2.1955]
[1717030846058,6.77,168.59,168.52,8.9655]
[1717030846863,6.77,168.58,168.52,8.9655]
[1717030847064,87.27,168.57,168.45,16.1132]
[1717030847246,87.27,168.57,168.47,6.77]
[1717030847247,6.77,168.54,168.47,6.77]
[1717030847450,2.1948,168.58,168.5,6.77]
[1717030847678,8.9648,168.58,168.51,6.77]
[1717030848183,8.9648,168.58,168.51,8.9656]
[1717030848354,8.9643,168.62,168.56,6.77]
[1717030848673,8.9643,168.62,168.56,8.965]
[1717030848674,6.77,168.62,168.56,8.965]
[1717030848850,6.77,168.63,168.57,8.9649]
[1717030849048,8.9641,168.63,168.57,6.77]
[1717030849250,8.9641,168.63,168.49,24.3578]
[1717030849251,6.77,168.64,168.58,6.77]
[1717030849485,6.77,168.65,168.54,4.3905]
[1717030849783,6.77,168.63,168.57,6.77]
[1717030850279,6.77,168.61,168.57,2.1949]
[1717030850577,6.77,168.61,168.52,20.0]
[1717030850786,6.77,168.61,168.57,2.1949]
[1717030851091,6.77,168.62,168.57,2.1949]
[1717030851456,2.1938,168.66,168.59,2.1946]
[1717030851657,6.77,168.64,168.59,2.1946]
[1717030852454,6.77,168.65,168.59,6.77]
[1717030852671,8.9638,168.65,168.59,8.9646]
[1717030853183,2.1937,168.66,168.6,2.1945]
[1717030853355,6.77,168.64,168.59,2.1946]
[1717030853563,6.77,168.64,168.58,8.9647]
[1717030853762,2.1937,168.66,168.59,2.1946]
[1717030854063,6.77,168.64,168.59,2.1946]
[1717030855270,6.77,168.63,168.58,2.1947]
[1717030855583,6.77,168.62,168.58,2.1947]
[1717030855789,6.77,168.63,168.58,2.1947]
[1717030856089,6.77,168.64,168.58,2.1947]
[1717030856379,6.77,168.64,168.57,6.77]
[1717030856380,6.77,168.63,168.57,2.1948]
[1717030856587,6.77,168.62,168.57,2.1948]
[1717030856781,6.77,168.62,168.58,2.1948]
[1717030857567,6.77,168.62,168.57,2.1948]
[1717030857776,8.9641,168.63,168.57,2.1948]
[1717030858473,6.77,168.63,168.57,2.1948]
[1717030858785,6.77,168.63,168.58,2.1948]
[1717030859391,2.1939,168.65,168.59,2.1946]
[1717030859689,6.77,168.63,168.59,2.1946]
[1717030860484,6.77,168.63,168.58,2.1947]
[1717030860880,6.77,168.63,168.59,2.1946]
[1717030861283,37.6939,168.65,168.59,2.1946]
[1717030861461,6.77,168.63,168.59,2.1946]
[1717030861666,6.77,168.63,168.58,2.1947]
[1717030861873,6.77,168.62,168.57,2.1948]
[1717030862090,6.77,168.6,168.52,10.8451]
[1717030862292,6.77,168.59,168.55,2.195]
[1717030862591,2.1943,168.62,168.56,2.195]
[1717030863173,2.1941,168.64,168.58,6.77]
[1717030863370,2.1941,168.64,168.58,8.9647]
[1717030863684,8.9641,168.64,168.58,8.9647]
[1717030863882,2.1939,168.65,168.58,6.77]
[1717030864067,35.5,168.69,168.59,6.77]
[1717030864269,2.1937,168.66,168.61,2.1943]
[1717030864468,6.77,168.65,168.61,2.1943]
[1717030864693,6.77,168.65,168.6,2.1944]
[1717030865082,6.77,168.64,168.6,2.1944]
[1717030865391,6.77,168.63,168.6,2.1944]
[1717030866198,0.3505,168.72,168.69,2.1932]
[1717030866371,0.3505,168.72,168.69,6.77]
[1717030866575,0.3505,168.72,168.71,2.1931]
[1717030867102,0.3505,168.72,168.7,8.9631]
[1717030867691,0.3505,168.72,168.71,2.1931]
[1717030868077,0.3505,168.72,168.71,8.9631]
[1717030869181,0.3505,168.72,168.71,2.1931]
[1717030869388,0.3505,168.72,168.7,2.1932]
[1717030869698,0.3505,168.72,168.71,2.1931]
[1717030869895,0.3505,168.72,168.71,8.9631]
[1717030873099,0.3505,168.72,168.71,10.90403392]
[1717030873881,0.3505,168.72,168.71,2.1931]
[1717030874900,0.3505,168.72,168.71,8.9631]
[1717030875693,0.3505,168.72,168.71,2.1931]
[1717030876209,7.1205,168.72,168.67,2.1935]
[1717030876489,6.77,168.69,168.63,10.622]
[1717030876798,6.77,168.71,168.65,6.77]
[1717030877096,9.3135,168.72,168.66,2.1937]
[1717030877287,6.77,168.71,168.66,2.1937]
[1717030877484,2.1933,168.7,168.64,2.194]
[1717030877692,6.77,168.67,168.61,6.77]
[1717030877883,6.77,168.67,168.62,2.1941]
[1717030878088,8.9636,168.67,168.62,2.1941]
[1717030878294,6.77,168.67,168.62,2.1941]
[1717030879006,6.77,168.65,168.6,2.1945]
[1717030879192,6.77,168.64,168.6,2.1945]
[1717030879396,6.77,168.64,168.59,2.1946]
[1717030879589,8.9638,168.65,168.59,2.1946]
[1717030880102,6.77,168.65,168.6,2.1945]
[1717030880405,2.194,168.64,168.58,2.1947]
[1717030880589,2.1938,168.66,168.59,2.1946]
[1717030880789,47.1938,168.66,168.56,5.41903776]
[1717030880982,2.1938,168.66,168.6,2.1945]
[1717030881381,2.1938,168.66,168.59,2.1946]
[1717030881382,2.1938,168.65,168.59,2.1946]
[1717030881988,2.1937,168.66,168.6,2.1945]
[1717030882192,2.1936,168.68,168.55,6.2827]
[1717030882395,2.1936,168.67,168.61,2.1943]
[1717030882684,2.1937,168.66,168.6,2.1945]
[1717030883293,2.1937,168.66,168.58,2.1947]
[1717030883294,35.5,168.66,168.58,2.1947]
[1717030883599,47.1939,168.65,168.59,2.1946]
[1717030884593,2.194,168.64,168.58,2.1947]
[1717030886103,47.1939,168.65,168.59,2.1946]
[1717030886312,45.0,168.65,168.58,2.1947]
[1717030886493,45.0,168.65,168.55,6.2827]
[1717030886494,2.1943,168.62,168.55,6.2827]
[1717030886691,45.0,168.65,168.55,6.2827]
[1717030886886,2.1941,168.63,168.57,2.1948]
[1717030887101,2.1941,168.63,168.58,2.1947]
[1717030887410,2.194,168.64,168.58,2.1947]
[1717030887910,2.1942,168.63,168.57,2.1948]
[1717030888205,2.194,168.64,168.58,2.1947]
[1717030888826,2.1941,168.63,168.58,2.1947]
[1717030889407,2.1941,168.63,168.57,2.1948]
[1717030890107,2.1941,168.63,168.58,2.1947]
[1717030891712,2.1941,168.63,168.57,2.1948]
[1717030892511,2.1944,168.61,168.55,2.1951]
[1717030892809,47.1943,168.62,168.56,2.1949]
[1717030892998,2.1944,168.61,168.56,2.1949]
[1717030893404,8.4115,168.61,168.56,2.1949]
[1717030893590,2.1941,168.63,168.57,2.1948]
[1717030893786,2.1941,168.63,168.54,4.3904]
[1717030894314,2.1943,168.62,168.56,2.1949]
[1717030894513,2.1943,168.62,168.57,2.1949]
[1717030894896,2.1944,168.61,168.56,2.195]
[1717030895299,2.1942,168.63,168.57,2.1949]
[1717030896113,2.1943,168.62,168.57,2.1949]
[1717030896297,2.1941,168.63,168.58,2.1948]
[1717030896604,2.1941,168.63,168.54,4.3905]
[1717030896993,2.1941,168.63,168.57,2.1948]
[1717030897390,2.1943,168.62,168.57,2.1948]
[1717030898015,2.1944,168.61,168.53,6.5862]
[1717030898206,2.1944,168.61,168.55,2.1951]
[1717030898518,2.1945,168.6,168.55,2.1951]
[1717030900014,2.1944,168.61,168.56,2.195]
[1717030900204,8.2946,168.61,168.56,2.195]
[1717030901696,2.1945,168.6,168.55,2.1951]
[1717030901900,2.1947,168.59,168.5,21.4586]
[1717030902124,35.5,168.61,168.55,2.1951]
[1717030902125,47.1945,168.6,168.55,2.1951]
[1717030902322,2.1945,168.6,168.55,2.1951]
[1717030902696,8.7841,168.6,168.55,2.1951]
[1717030903118,8.7841,168.6,168.54,2.1952]
[1717030903305,2.1951,168.56,168.5,2.1957]
[1717030903637,2.1949,168.57,168.51,2.1955]
[1717030904594,2.1949,168.57,168.52,2.1955]
[1717030906525,8.6569,168.57,168.52,2.1955]
[1717030906905,6.462,168.57,168.53,2.1954]
[1717030907701,2.195,168.56,168.51,2.1956]
[1717030907898,6.6461,168.55,168.51,2.1956]
[1717030908104,8.8413,168.55,168.5,2.1957]
[1717030908300,6.6461,168.55,168.47,13.1771]
[1717030908520,6.6461,168.55,168.51,2.1957]
[1717030909422,8.8413,168.55,168.5,2.1957]
[1717030910004,6.1505,168.54,168.5,2.1957]
[1717030910216,8.3458,168.54,168.5,2.1957]
[1717030911149,2.1956,168.52,168.44,13.1793]
[1717030911635,8.2398,168.52,168.48,2.1961]
[1717030912009,6.0442,168.52,168.48,2.1961]
[1717030912431,8.2397,168.52,168.48,2.1961]
[1717030912613,2.1959,168.5,168.42,6.2321]
[1717030912821,2.1959,168.5,168.45,2.1964]
[1717030913023,2.1957,168.51,168.46,2.1963]
[1717030913417,2.1958,168.5,168.46,2.1963]
[1717030913619,2.1957,168.51,168.46,2.1963]
[1717030914032,2.1957,168.51,168.47,2.1962]
[1717030914217,2.1958,168.5,168.45,2.1964]
[1717030915542,2.1958,168.5,168.46,2.1963]
[1717030916040,2.1958,168.5,168.45,2.1964]
[1717030916537,2.1958,168.5,168.45,8.9764]
[1717030917935,2.1958,168.5,168.46,2.1963]
[1717030918138,2.1958,168.5,168.45,8.9764]
[1717030918320,2.196,168.49,168.44,2.1965]
[1717030918520,13.0171,168.5,168.44,6.78]
[1717030918720,15.213,168.5,168.45,2.1964]
[1717030919146,13.0171,168.49,168.43,2.1966]
[1717030919331,6.78,168.48,168.43,2.1966]
[1717030919644,15.5149,168.48,168.43,2.1966]
[1717030920022,15.5149,168.48,168.44,2.1966]
[1717030920634,15.5149,168.48,168.43,2.1967]
[1717030921040,35.5,168.5,168.42,2.1968]
[1717030921041,8.4497,168.47,168.42,2.1968]
[1717030921241,6.78,168.46,168.42,2.1968]
[1717030921418,12.9208,168.46,168.42,2.1968]
[1717030921921,6.1408,168.44,168.38,4.3948]
[1717030922153,6.1408,168.44,168.36,6.593]
[1717030922325,8.3374,168.44,168.39,2.1972]
[1717030922512,8.3374,168.44,168.39,2.1971]
[1717030923217,8.977,168.41,168.36,2.1975]
[1717030923515,6.78,168.39,168.35,2.1977]
[1717030923724,6.78,168.39,168.33,4.396]
[1717030924029,35.5,168.43,168.38,2.1973]
[1717030924030,37.6968,168.43,168.38,2.1973]
[1717030924225,2.1969,168.42,168.34,6.5937]
[1717030924426,2.197,168.41,168.37,2.1975]
[1717030924630,8.4355,168.41,168.36,2.1976]
[1717030924831,6.2385,168.41,168.37,2.1975]
[1717030925030,6.2385,168.41,168.38,2.1973]
[1717030925634,6.2385,168.41,168.37,2.1974]
[1717030925955,2.1968,168.43,168.39,2.1972]
[1717030926119,6.1428,168.42,168.38,2.1973]
[1717030926320,6.1428,168.41,168.35,4.3954]
[1717030926645,6.1428,168.41,168.38,2.1973]
[1717030926848,2.197,168.41,168.36,2.1975]
[1717030927023,6.0671,168.41,168.33,6.594]
[1717030927223,6.0671,168.41,168.37,2.1975]
[1717030927425,37.697,168.42,168.35,2.1977]
[1717030927426,2.1971,168.4,168.35,2.1977]
[1717030927653,6.0778,168.39,168.35,2.1977]
[1717030927855,6.0778,168.39,168.36,2.1976]
[1717030928025,6.0778,168.39,168.35,2.1977]
[1717030928226,8.275,168.39,168.35,2.1977]
[1717030928526,8.275,168.39,168.34,2.1978]
[1717030929144,6.274,168.38,168.34,2.1978]
[1717030929644,6.274,168.38,168.35,2.1977]
[1717030929827,2.1972,168.39,168.35,2.1977]
[1717030930026,8.5683,168.39,168.35,2.1977]
[1717030931047,8.5683,168.39,168.34,2.1978]
[1717030931227,6.3711,168.39,168.35,2.1977]
[1717030931623,8.5683,168.39,168.35,2.1977]
[1717030932540,8.5683,168.39,168.34,2.1979]
[1717030933849,21.6092,168.37,168.33,2.198]
[1717030934149,23.8067,168.37,168.32,2.1981]
[1717030935343,15.4492,168.37,168.32,2.1981]
[1717030935534,6.2624,168.36,168.32,2.1981]
[1717030936550,8.46,168.36,168.32,2.1981]
[1717030936742,8.46,168.36,168.31,2.1982]
[1717030936942,8.46,168.36,168.32,2.1981]
[1717030938657,6.5119,168.33,168.31,2.1982]
[1717030939566,6.5119,168.33,168.29,2.1984]
[1717030940357,6.5119,168.33,168.3,2.1984]
[1717030940542,2.1978,168.35,168.27,4.3976]